[Event "Titled Tuesday Blitz August 16 Late 2022"]
[White "Zenin, Dmitry"]
[Black "Vargas, Mauricio"]
[WhiteFideId "4127897"]
[BlackFideId "4404572"]
[WhiteElo "2215"]
[BlackElo "2004"]
[Result "1-0"]
[Round "03"]
[TimeControl "180+1"]
[Date "2022.08.18"]
[WhiteClock "0:00:00"]
[BlackClock "0:00:00"]

1. c4 {[%clk 0:00:00]}  e5 {[%clk 0:00:00]} 2. Nc3 {[%clk 0:00:00]}  Nc6 {[%clk 0:00:00]} 3. g3 {[%clk 0:00:00]}  f5 {[%clk 0:00:00]} 4. Bg2 {[%clk 0:00:00]}  Nf6 {[%clk 0:00:00]} 5. d3 {[%clk 0:00:00]}  Bb4 {[%clk 0:00:00]} 6. Bd2 {[%clk 0:00:00]}  Bxc3 {[%clk 0:00:00]} 7. Bxc3 {[%clk 0:00:00]}  O-O {[%clk 0:00:00]} 8. e3 {[%clk 0:00:00]}  d6 {[%clk 0:00:00]} 9. Ne2 {[%clk 0:00:00]}  Qe8 {[%clk 0:00:00]} 10. O-O {[%clk 0:00:00]}  Qh5 {[%clk 0:00:00]} 11. d4 {[%clk 0:00:00]}  f4 {[%clk 0:00:00]} 12. exf4 {[%clk 0:00:00]}  Bh3 {[%clk 0:00:00]} 13. f3 {[%clk 0:00:00]}  e4 {[%clk 0:00:00]} 14. d5 {[%clk 0:00:00]}  exf3 {[%clk 0:00:00]} 15. Bxf3 {[%clk 0:00:00]}  Ng4 {[%clk 0:00:00]} 16. dxc6 {[%clk 0:00:00]}  Bxf1 {[%clk 0:00:00]} 17. Bxg4 {[%clk 0:00:00]}  Bxe2 {[%clk 0:00:00]} 18. Qxe2 {[%clk 0:00:00]}  Qc5+ {[%clk 0:00:00]} 19. Qf2 {[%clk 0:00:00]}  Qxc6 {[%clk 0:00:00]} 20. b3 {[%clk 0:00:00]}  Rae8 {[%clk 0:00:00]} 21. Bf3 {[%clk 0:00:00]}  Qd7 {[%clk 0:00:00]} 22. Rd1 {[%clk 0:00:00]}  Qf5 {[%clk 0:00:00]} 23. Kg2 {[%clk 0:00:00]}  b6 {[%clk 0:00:00]} 24. Rd2 {[%clk 0:00:00]}  Qb1 {[%clk 0:00:00]} 25. Qd4 {[%clk 0:00:00]}  Re7 {[%clk 0:00:00]} 26. Qd3 {[%clk 0:00:00]}  Qc1 {[%clk 0:00:00]} 27. Qc2 {[%clk 0:00:00]}  Qe1 {[%clk 0:00:00]} 28. Rf2 {[%clk 0:00:00]}  Qe6 {[%clk 0:00:00]} 29. Bd5 {[%clk 0:00:00]}  Rfe8 {[%clk 0:00:00]} 30. Qe4 {[%clk 0:00:00]}  Kh8 {[%clk 0:00:00]} 31. Bxe6 {[%clk 0:00:00]}  Rxe6 {[%clk 0:00:00]} 32. Qc6 {[%clk 0:00:00]}  R6e7 {[%clk 0:00:00]} 33. h4 {[%clk 0:00:00]}  h6 {[%clk 0:00:00]} 34. h5 {[%clk 0:00:00]}  Kh7 {[%clk 0:00:00]} 35. Qd5 {[%clk 0:00:00]}  Re3 {[%clk 0:00:00]} 36. Qf5+ {[%clk 0:00:00]}  Kh8 {[%clk 0:00:00]} 37. Qg6 {[%clk 0:00:00]} 1-0


[Site "https://www.chess.com"]

[Event "Titled Tuesday Blitz August 16 Late 2022"]
[White "Abdyzhapar, Asylbek"]
[Black "Holt, Conrad"]
[WhiteFideId "13800337"]
[BlackFideId "2034387"]
[WhiteElo "2323"]
[BlackElo "2586"]
[Result "0-1"]
[Round "04"]
[TimeControl "180+1"]
[Date "2022.08.16"]
[WhiteClock "0:00:56"]
[BlackClock "0:00:10"]

1. c4 {[%clk 0:03:00]}  c6 {[%clk 0:02:57]} 2. Nf3 {[%clk 0:03:00]}  d5 {[%clk 0:02:57]} 3. g3 {[%clk 0:03:00]}  Bg4 {[%clk 0:02:55]} 4. Bg2 {[%clk 0:03:00]}  e6 {[%clk 0:02:54]} 5. O-O {[%clk 0:03:01]}  Nd7 {[%clk 0:02:52]} 6. b3 {[%clk 0:03:00]}  Bxf3 {[%clk 0:02:37]} 7. Bxf3 {[%clk 0:03:00]}  dxc4 {[%clk 0:02:36]} 8. bxc4 {[%clk 0:03:00]}  Ne5 {[%clk 0:02:36]} 9. Bg2 {[%clk 0:02:58]}  Nxc4 {[%clk 0:02:36]} 10. Qb3 {[%clk 0:02:59]}  Nb6 {[%clk 0:02:33]} 11. Bb2 {[%clk 0:02:57]}  Nf6 {[%clk 0:02:33]} 12. a4 {[%clk 0:02:56]}  a5 {[%clk 0:02:17]} 13. Nc3 {[%clk 0:02:52]}  Bb4 {[%clk 0:02:11]} 14. Na2 {[%clk 0:02:51]}  Be7 {[%clk 0:02:04]} 15. Rab1 {[%clk 0:02:50]}  Ra6 {[%clk 0:02:00]} 16. e3 {[%clk 0:02:42]}  O-O {[%clk 0:01:56]} 17. Bd4 {[%clk 0:02:42]}  Nfd7 {[%clk 0:01:49]} 18. Rfc1 {[%clk 0:02:37]}  e5 {[%clk 0:01:46]} 19. Bc3 {[%clk 0:02:34]}  Nc5 {[%clk 0:01:46]} 20. Qd1 {[%clk 0:02:33]}  Nd3 {[%clk 0:01:37]} 21. Rc2 {[%clk 0:02:28]}  Qd7 {[%clk 0:01:31]} 22. Bxa5 {[%clk 0:02:16]}  Nxa4 {[%clk 0:01:20]} 23. Bb4 {[%clk 0:02:11]}  c5 {[%clk 0:01:15]} 24. Bc3 {[%clk 0:02:09]}  b5 {[%clk 0:01:15]} 25. Qh5 {[%clk 0:02:00]}  b4 {[%clk 0:00:59]} 26. Be4 {[%clk 0:01:45]}  Rh6 {[%clk 0:00:51]} 27. Qe2 {[%clk 0:01:45]}  Rd6 {[%clk 0:00:20]} 28. Bxd3 {[%clk 0:01:38]}  Rxd3 {[%clk 0:00:19]} 29. Bxe5 {[%clk 0:01:31]}  b3 {[%clk 0:00:19]} 30. Rcc1 {[%clk 0:01:09]}  bxa2 {[%clk 0:00:17]} 31. Ra1 {[%clk 0:01:09]}  Rxd2 {[%clk 0:00:16]} 32. Qc4 {[%clk 0:01:09]}  Nb6 {[%clk 0:00:14]} 33. Qc3 {[%clk 0:01:07]}  f6 {[%clk 0:00:15]} 34. Bc7 {[%clk 0:01:03]}  Na4 {[%clk 0:00:14]} 35. Qc4+ {[%clk 0:01:02]}  Kh8 {[%clk 0:00:13]} 36. Rxa2 {[%clk 0:01:01]}  Rxa2 {[%clk 0:00:12]} 37. Qxa2 {[%clk 0:01:01]}  Qxc7 {[%clk 0:00:13]} 38. Qxa4 {[%clk 0:01:01]}  g6 {[%clk 0:00:13]} 39. Rd1 {[%clk 0:01:01]}  Rd8 {[%clk 0:00:13]} 40. Rb1 {[%clk 0:01:02]}  c4 {[%clk 0:00:12]} 41. Rc1 {[%clk 0:01:02]}  c3 {[%clk 0:00:12]} 42. Qe4 {[%clk 0:01:02]}  Rc8 {[%clk 0:00:12]} 43. Rc2 {[%clk 0:01:01]}  Kg7 {[%clk 0:00:12]} 44. h4 {[%clk 0:01:01]}  Bf8 {[%clk 0:00:12]} 45. h5 {[%clk 0:01:01]}  Qc4 {[%clk 0:00:12]} 46. Qb7+ {[%clk 0:00:59]}  Rc7 {[%clk 0:00:12]} 47. Qb8 {[%clk 0:00:59]}  gxh5 {[%clk 0:00:12]} 48. Kh2 {[%clk 0:00:58]}  h4 {[%clk 0:00:13]} 49. g4 {[%clk 0:00:58]}  Bd6+ {[%clk 0:00:12]} 50. f4 {[%clk 0:00:58]}  Bxf4+ {[%clk 0:00:11]} 51. exf4 {[%clk 0:00:58]}  Qxf4+ {[%clk 0:00:12]} 52. Kh1 {[%clk 0:00:59]}  Qe4+ {[%clk 0:00:11]} 53. Kh2 {[%clk 0:00:59]}  Rd7 {[%clk 0:00:10]} 54. Rg2 {[%clk 0:00:57]}  Qe5+ {[%clk 0:00:10]} 55. Qxe5 {[%clk 0:00:56]}  fxe5 {[%clk 0:00:11]} 56. Rc2 {[%clk 0:00:56]}  Rd2+ {[%clk 0:00:10]} 0-1


[Site "https://www.chess.com"]

[Event "Titled Tuesday Blitz August 16 Late 2022"]
[White "Aldokhin, Ivan"]
[Black "Lenderman, Aleksandr"]
[WhiteFideId "24115720"]
[BlackFideId "2021285"]
[WhiteElo "2246"]
[BlackElo "2607"]
[Result "0-1"]
[Round "04"]
[TimeControl "180+1"]
[Date "2022.08.16"]
[WhiteClock "0:00:03"]
[BlackClock "0:00:58"]

1. e4 {[%clk 0:03:00]}  g6 {[%clk 0:02:59]} 2. d4 {[%clk 0:03:00]}  Bg7 {[%clk 0:02:59]} 3. Nc3 {[%clk 0:03:00]}  d6 {[%clk 0:02:59]} 4. Bg5 {[%clk 0:03:01]}  b6 {[%clk 0:02:48]} 5. Qd2 {[%clk 0:02:59]}  Bb7 {[%clk 0:02:48]} 6. f4 {[%clk 0:02:59]}  Nd7 {[%clk 0:02:37]} 7. Nf3 {[%clk 0:02:58]}  Ngf6 {[%clk 0:02:35]} 8. e5 {[%clk 0:02:40]}  Ne4 {[%clk 0:02:34]} 9. Nxe4 {[%clk 0:02:39]}  Bxe4 {[%clk 0:02:35]} 10. Be2 {[%clk 0:02:16]}  O-O {[%clk 0:02:32]} 11. O-O-O {[%clk 0:02:13]}  f6 {[%clk 0:02:32]} 12. Bh4 {[%clk 0:02:04]}  Bh6 {[%clk 0:02:30]} 13. Qe3 {[%clk 0:01:36]}  Bxf3 {[%clk 0:02:07]} 14. Bxf3 {[%clk 0:01:33]}  fxe5 {[%clk 0:02:07]} 15. Qb3+ {[%clk 0:01:31]}  Kh8 {[%clk 0:02:08]} 16. Bxa8 {[%clk 0:01:23]}  Rxf4 {[%clk 0:02:08]} 17. Kb1 {[%clk 0:01:10]}  Rxh4 {[%clk 0:02:08]} 18. Bc6 {[%clk 0:00:40]}  Rxd4 {[%clk 0:02:03]} 19. Rxd4 {[%clk 0:00:27]}  exd4 {[%clk 0:02:03]} 20. Bxd7 {[%clk 0:00:27]}  Qxd7 {[%clk 0:02:02]} 21. Qf7 {[%clk 0:00:26]}  Bg7 {[%clk 0:01:44]} 22. Re1 {[%clk 0:00:23]}  d3 {[%clk 0:01:21]} 23. Rxe7 {[%clk 0:00:05]}  dxc2+ {[%clk 0:01:21]} 24. Kc1 {[%clk 0:00:03]}  Bh6+ {[%clk 0:01:19]} 25. Kxc2 {[%clk 0:00:04]}  Qc6+ {[%clk 0:00:58]} 26. Kb1 {[%clk 0:00:03]}  Qc1# {[%clk 0:00:58]} 0-1


[Site "https://www.chess.com"]

[Event "Titled Tuesday Blitz August 16 Late 2022"]
[White "Ardila, Oscar Humberto"]
[Black "Vagman, Roy"]
[WhiteFideId "4404742"]
[BlackFideId "2828995"]
[WhiteElo "1939"]
[BlackElo "1956"]
[Result "0-1"]
[Round "04"]
[TimeControl "180+1"]
[Date "2022.08.18"]
[WhiteClock "0:00:00"]
[BlackClock "0:00:00"]

1. d4 {[%clk 0:00:00]}  Nf6 {[%clk 0:00:00]} 2. c4 {[%clk 0:00:00]}  g6 {[%clk 0:00:00]} 3. Nc3 {[%clk 0:00:00]}  Bg7 {[%clk 0:00:00]} 4. Nf3 {[%clk 0:00:00]}  O-O {[%clk 0:00:00]} 5. e3 {[%clk 0:00:00]}  c5 {[%clk 0:00:00]} 6. Be2 {[%clk 0:00:00]}  d5 {[%clk 0:00:00]} 7. O-O {[%clk 0:00:00]}  Nc6 {[%clk 0:00:00]} 8. cxd5 {[%clk 0:00:00]}  Nxd5 {[%clk 0:00:00]} 9. dxc5 {[%clk 0:00:00]}  Nxc3 {[%clk 0:00:00]} 10. bxc3 {[%clk 0:00:00]}  Qa5 {[%clk 0:00:00]} 11. Bb2 {[%clk 0:00:00]}  Rd8 {[%clk 0:00:00]} 12. Qb3 {[%clk 0:00:00]}  Be6 {[%clk 0:00:00]} 13. Qxb7 {[%clk 0:00:00]}  Rab8 {[%clk 0:00:00]} 14. Qxc6 {[%clk 0:00:00]}  Rxb2 {[%clk 0:00:00]} 15. Qa6 {[%clk 0:00:00]}  Qxc5 {[%clk 0:00:00]} 16. Nd4 {[%clk 0:00:00]}  Bc8 {[%clk 0:00:00]} 17. Qc4 {[%clk 0:00:00]}  Qb6 {[%clk 0:00:00]} 18. Rad1 {[%clk 0:00:00]}  h5 {[%clk 0:00:00]} 19. Nc6 {[%clk 0:00:00]}  Re8 {[%clk 0:00:00]} 20. Nd4 {[%clk 0:00:00]}  a5 {[%clk 0:00:00]} 21. Bd3 {[%clk 0:00:00]}  e5 {[%clk 0:00:00]} 22. Nb3 {[%clk 0:00:00]}  Be6 {[%clk 0:00:00]} 23. Qb5 {[%clk 0:00:00]}  Qxb5 {[%clk 0:00:00]} 24. Bxb5 {[%clk 0:00:00]}  Rc8 {[%clk 0:00:00]} 25. c4 {[%clk 0:00:00]}  Rxa2 {[%clk 0:00:00]} 26. Ra1 {[%clk 0:00:00]}  Rxa1 {[%clk 0:00:00]} 27. Rxa1 {[%clk 0:00:00]}  e4 {[%clk 0:00:00]} 28. Rxa5 {[%clk 0:00:00]}  Bxc4 {[%clk 0:00:00]} 29. Bxc4 {[%clk 0:00:00]}  Rxc4 {[%clk 0:00:00]} 30. g3 {[%clk 0:00:00]}  Rc3 {[%clk 0:00:00]} 31. Ra8+ {[%clk 0:00:00]}  Kh7 {[%clk 0:00:00]} 32. Na5 {[%clk 0:00:00]}  Bh6 {[%clk 0:00:00]} 33. Nb7 {[%clk 0:00:00]}  Rc1+ {[%clk 0:00:00]} 34. Kg2 {[%clk 0:00:00]}  Rc2 {[%clk 0:00:00]} 35. Kf1 {[%clk 0:00:00]}  Rc1+ {[%clk 0:00:00]} 36. Kg2 {[%clk 0:00:00]}  Bg5 {[%clk 0:00:00]} 37. Nd6 {[%clk 0:00:00]}  Rc2 {[%clk 0:00:00]} 38. Kf1 {[%clk 0:00:00]}  f5 {[%clk 0:00:00]} 39. Ra7+ {[%clk 0:00:00]}  Kg8 {[%clk 0:00:00]} 40. Nf7 {[%clk 0:00:00]}  Bf6 {[%clk 0:00:00]} 41. h4 {[%clk 0:00:00]}  Rc1+ {[%clk 0:00:00]} 42. Kg2 {[%clk 0:00:00]}  Rc2 {[%clk 0:00:00]} 43. Nh6+ {[%clk 0:00:00]}  Kh8 {[%clk 0:00:00]} 44. Nf7+ {[%clk 0:00:00]}  Kg7 {[%clk 0:00:00]} 45. Ne5+ {[%clk 0:00:00]}  Kh6 {[%clk 0:00:00]} 46. Nf7+ {[%clk 0:00:00]}  Kg7 {[%clk 0:00:00]} 47. Ng5+ {[%clk 0:00:00]}  Kg8 {[%clk 0:00:00]} 48. Ra8+ {[%clk 0:00:00]}  Kg7 {[%clk 0:00:00]} 49. Ra7+ {[%clk 0:00:00]}  Kh8 {[%clk 0:00:00]} 50. Nf7+ {[%clk 0:00:00]}  Kg8 {[%clk 0:00:00]} 51. Ne5 {[%clk 0:00:00]}  Bxe5 {[%clk 0:00:00]} 52. Ra8+ {[%clk 0:00:00]}  Kf7 {[%clk 0:00:00]} 53. Ra7+ {[%clk 0:00:00]}  Rc7 {[%clk 0:00:00]} 54. Ra6 {[%clk 0:00:00]}  Bf6 {[%clk 0:00:00]} 55. Ra8 {[%clk 0:00:00]}  Rc2 {[%clk 0:00:00]} 56. Ra6 {[%clk 0:00:00]}  Be7 {[%clk 0:00:00]} 57. Ra7 {[%clk 0:00:00]}  Kf6 {[%clk 0:00:00]} 58. Ra6+ {[%clk 0:00:00]}  Ke5 {[%clk 0:00:00]} 59. Ra5+ {[%clk 0:00:00]}  Bc5 {[%clk 0:00:00]} 60. Ra6 {[%clk 0:00:00]}  Bxe3 {[%clk 0:00:00]} 61. Rxg6 {[%clk 0:00:00]}  Rxf2+ {[%clk 0:00:00]} 62. Kh3 {[%clk 0:00:00]}  Rf3 {[%clk 0:00:00]} 63. Rg8 {[%clk 0:00:00]}  Bf2 {[%clk 0:00:00]} 64. Re8+ {[%clk 0:00:00]}  Kd4 {[%clk 0:00:00]} 65. Rd8+ {[%clk 0:00:00]}  Ke3 {[%clk 0:00:00]} 66. Rh8 {[%clk 0:00:00]}  Rxg3+ {[%clk 0:00:00]} 67. Kh2 {[%clk 0:00:00]}  Rg4 {[%clk 0:00:00]} 68. Rxh5 {[%clk 0:00:00]}  Rxh4+ {[%clk 0:00:00]} 69. Rxh4 {[%clk 0:00:00]}  Bxh4 {[%clk 0:00:00]} 0-1


[Site "https://www.chess.com"]

[Event "Titled Tuesday Blitz August 16 Late 2022"]
[White "Avila Pavas, Santiago"]
[Black "Mihajlov, Sebastian"]
[WhiteFideId "4437128"]
[BlackFideId "1512110"]
[WhiteElo "2291"]
[BlackElo "2464"]
[Result "1-0"]
[Round "04"]
[TimeControl "180+1"]
[Date "2022.08.18"]
[WhiteClock "0:00:00"]
[BlackClock "0:00:00"]

1. b3 {[%clk 0:00:00]}  a5 {[%clk 0:00:00]} 2. Bb2 {[%clk 0:00:00]}  a4 {[%clk 0:00:00]} 3. Nf3 {[%clk 0:00:00]}  e6 {[%clk 0:00:00]} 4. e3 {[%clk 0:00:00]}  a3 {[%clk 0:00:00]} 5. Bc3 {[%clk 0:00:00]}  Nf6 {[%clk 0:00:00]} 6. Be2 {[%clk 0:00:00]}  d5 {[%clk 0:00:00]} 7. O-O {[%clk 0:00:00]}  Bd6 {[%clk 0:00:00]} 8. d4 {[%clk 0:00:00]}  Qe7 {[%clk 0:00:00]} 9. Nbd2 {[%clk 0:00:00]}  Nbd7 {[%clk 0:00:00]} 10. Rc1 {[%clk 0:00:00]}  b6 {[%clk 0:00:00]} 11. Ne5 {[%clk 0:00:00]}  c5 {[%clk 0:00:00]} 12. Nc6 {[%clk 0:00:00]}  Qf8 {[%clk 0:00:00]} 13. Bb5 {[%clk 0:00:00]}  Bb7 {[%clk 0:00:00]} 14. e4 {[%clk 0:00:00]}  dxe4 {[%clk 0:00:00]} 15. Nc4 {[%clk 0:00:00]}  Nd5 {[%clk 0:00:00]} 16. dxc5 {[%clk 0:00:00]}  Bxc5 {[%clk 0:00:00]} 17. Ba1 {[%clk 0:00:00]}  Ba6 {[%clk 0:00:00]} 18. Bxa6 {[%clk 0:00:00]}  Rxa6 {[%clk 0:00:00]} 19. Qe2 {[%clk 0:00:00]}  f5 {[%clk 0:00:00]} 20. N4e5 {[%clk 0:00:00]}  Ra8 {[%clk 0:00:00]} 21. b4 {[%clk 0:00:00]}  Bd6 {[%clk 0:00:00]} 22. Nxd7 {[%clk 0:00:00]}  Kxd7 {[%clk 0:00:00]} 23. Qb5 {[%clk 0:00:00]}  Kc8 {[%clk 0:00:00]} 24. c4 {[%clk 0:00:00]}  Nc7 {[%clk 0:00:00]} 25. Qxb6 {[%clk 0:00:00]}  Ra6 {[%clk 0:00:00]} 26. Qb8+ {[%clk 0:00:00]}  Kd7 {[%clk 0:00:00]} 27. b5 {[%clk 0:00:00]}  Qxb8 {[%clk 0:00:00]} 28. Nxb8+ {[%clk 0:00:00]}  Rxb8 {[%clk 0:00:00]} 29. bxa6 {[%clk 0:00:00]}  Nxa6 {[%clk 0:00:00]} 30. Rb1 {[%clk 0:00:00]}  Rc8 {[%clk 0:00:00]} 31. Rb7+ {[%clk 0:00:00]}  Kc6 {[%clk 0:00:00]} 32. Rxg7 {[%clk 0:00:00]}  Nb4 {[%clk 0:00:00]} 33. Ra7 {[%clk 0:00:00]}  Nxa2 {[%clk 0:00:00]} 34. Ra6+ {[%clk 0:00:00]}  Kd7 {[%clk 0:00:00]} 35. Rd1 {[%clk 0:00:00]}  Rc6 {[%clk 0:00:00]} 36. Rxa3 {[%clk 0:00:00]}  Nb4 {[%clk 0:00:00]} 37. Be5 {[%clk 0:00:00]}  Nd3 {[%clk 0:00:00]} 38. Raxd3 {[%clk 0:00:00]}  exd3 {[%clk 0:00:00]} 39. Rxd3 {[%clk 0:00:00]}  Ke7 {[%clk 0:00:00]} 40. Bxd6+ {[%clk 0:00:00]}  Rxd6 {[%clk 0:00:00]} 41. Rxd6 {[%clk 0:00:00]}  Kxd6 {[%clk 0:00:00]} 42. Kf1 {[%clk 0:00:00]}  Kc5 {[%clk 0:00:00]} 43. Ke2 {[%clk 0:00:00]}  Kxc4 {[%clk 0:00:00]} 44. Ke3 {[%clk 0:00:00]}  e5 {[%clk 0:00:00]} 45. f4 {[%clk 0:00:00]}  e4 {[%clk 0:00:00]} 46. g4 {[%clk 0:00:00]}  fxg4 {[%clk 0:00:00]} 47. Kxe4 {[%clk 0:00:00]}  Kc5 {[%clk 0:00:00]} 48. Ke5 {[%clk 0:00:00]}  h5 {[%clk 0:00:00]} 49. f5 {[%clk 0:00:00]}  Kc6 {[%clk 0:00:00]} 50. Ke6 {[%clk 0:00:00]}  h4 {[%clk 0:00:00]} 51. f6 {[%clk 0:00:00]}  g3 {[%clk 0:00:00]} 52. f7 {[%clk 0:00:00]}  gxh2 {[%clk 0:00:00]} 53. f8=Q {[%clk 0:00:00]}  h1=Q {[%clk 0:00:00]} 54. Qa8+ {[%clk 0:00:00]} 1-0


[Site "https://www.chess.com"]

[Event "Titled Tuesday Blitz August 16 Late 2022"]
[White "Bartholomew, John"]
[Black "Filgueira, Hernan"]
[WhiteFideId "2019353"]
[BlackFideId "101770"]
[WhiteElo "2446"]
[BlackElo "2363"]
[Result "1-0"]
[Round "04"]
[TimeControl "180+1"]
[Date "2022.08.18"]
[WhiteClock "0:00:00"]
[BlackClock "0:00:00"]

1. d4 {[%clk 0:00:00]}  d5 {[%clk 0:00:00]} 2. c4 {[%clk 0:00:00]}  c6 {[%clk 0:00:00]} 3. Nf3 {[%clk 0:00:00]}  Nf6 {[%clk 0:00:00]} 4. Nbd2 {[%clk 0:00:00]}  g6 {[%clk 0:00:00]} 5. e3 {[%clk 0:00:00]}  Bg7 {[%clk 0:00:00]} 6. b3 {[%clk 0:00:00]}  O-O {[%clk 0:00:00]} 7. Bb2 {[%clk 0:00:00]}  Bg4 {[%clk 0:00:00]} 8. Be2 {[%clk 0:00:00]}  e6 {[%clk 0:00:00]} 9. O-O {[%clk 0:00:00]}  Nbd7 {[%clk 0:00:00]} 10. h3 {[%clk 0:00:00]}  Bxf3 {[%clk 0:00:00]} 11. Nxf3 {[%clk 0:00:00]}  a5 {[%clk 0:00:00]} 12. Qc2 {[%clk 0:00:00]}  Re8 {[%clk 0:00:00]} 13. Bd3 {[%clk 0:00:00]}  Qb8 {[%clk 0:00:00]} 14. Rfc1 {[%clk 0:00:00]}  Qd6 {[%clk 0:00:00]} 15. a3 {[%clk 0:00:00]}  Rec8 {[%clk 0:00:00]} 16. c5 {[%clk 0:00:00]}  Qb8 {[%clk 0:00:00]} 17. b4 {[%clk 0:00:00]}  b5 {[%clk 0:00:00]} 18. cxb6 {[%clk 0:00:00]}  Qxb6 {[%clk 0:00:00]} 19. Bc3 {[%clk 0:00:00]}  axb4 {[%clk 0:00:00]} 20. axb4 {[%clk 0:00:00]}  Bf8 {[%clk 0:00:00]} 21. Qb2 {[%clk 0:00:00]}  Rcb8 {[%clk 0:00:00]} 22. Rcb1 {[%clk 0:00:00]}  Be7 {[%clk 0:00:00]} 23. Nd2 {[%clk 0:00:00]}  Ne8 {[%clk 0:00:00]} 24. Rxa8 {[%clk 0:00:00]}  Rxa8 {[%clk 0:00:00]} 25. b5 {[%clk 0:00:00]}  cxb5 {[%clk 0:00:00]} 26. Bxb5 {[%clk 0:00:00]}  Nef6 {[%clk 0:00:00]} 27. Bxd7 {[%clk 0:00:00]}  Qxb2 {[%clk 0:00:00]} 28. Rxb2 {[%clk 0:00:00]}  Nxd7 {[%clk 0:00:00]} 29. Rb7 {[%clk 0:00:00]}  Nf6 {[%clk 0:00:00]} 30. Rxe7 {[%clk 0:00:00]}  Ra3 {[%clk 0:00:00]} 31. Rc7 {[%clk 0:00:00]}  Ra2 {[%clk 0:00:00]} 32. Kf1 {[%clk 0:00:00]}  h5 {[%clk 0:00:00]} 33. Bb4 {[%clk 0:00:00]}  Rb2 {[%clk 0:00:00]} 34. Be7 {[%clk 0:00:00]}  Nh7 {[%clk 0:00:00]} 35. Nf3 {[%clk 0:00:00]}  Rb1+ {[%clk 0:00:00]} 36. Ke2 {[%clk 0:00:00]}  Rb2+ {[%clk 0:00:00]} 37. Nd2 {[%clk 0:00:00]}  Kg7 {[%clk 0:00:00]} 38. g4 {[%clk 0:00:00]}  hxg4 {[%clk 0:00:00]} 39. hxg4 {[%clk 0:00:00]}  g5 {[%clk 0:00:00]} 40. Bd6 {[%clk 0:00:00]}  Kg6 {[%clk 0:00:00]} 41. Be5 {[%clk 0:00:00]}  f6 {[%clk 0:00:00]} 42. Bd6 {[%clk 0:00:00]}  f5 {[%clk 0:00:00]} 43. gxf5+ {[%clk 0:00:00]}  exf5 {[%clk 0:00:00]} 44. Be5 {[%clk 0:00:00]}  g4 {[%clk 0:00:00]} 45. Rg7+ {[%clk 0:00:00]}  Kh6 {[%clk 0:00:00]} 46. Rd7 {[%clk 0:00:00]}  Kg6 {[%clk 0:00:00]} 47. Rd6+ {[%clk 0:00:00]}  Kh5 {[%clk 0:00:00]} 48. Rxd5 {[%clk 0:00:00]}  Ng5 {[%clk 0:00:00]} 49. Kd3 {[%clk 0:00:00]}  Nh3 {[%clk 0:00:00]} 50. Bg3 {[%clk 0:00:00]}  Kg6 {[%clk 0:00:00]} 51. Rd6+ {[%clk 0:00:00]}  Kg5 {[%clk 0:00:00]} 52. d5 {[%clk 0:00:00]}  Ra2 {[%clk 0:00:00]} 53. Rd8 {[%clk 0:00:00]}  Ra3+ {[%clk 0:00:00]} 54. Kd4 {[%clk 0:00:00]}  f4 {[%clk 0:00:00]} 55. Bxf4+ {[%clk 0:00:00]}  Kf5 {[%clk 0:00:00]} 56. Rf8+ {[%clk 0:00:00]}  Kg6 {[%clk 0:00:00]} 57. Ne4 {[%clk 0:00:00]}  Ra4+ {[%clk 0:00:00]} 58. Ke5 {[%clk 0:00:00]}  Ng1 {[%clk 0:00:00]} 59. d6 {[%clk 0:00:00]}  Nf3+ {[%clk 0:00:00]} 60. Kd5 {[%clk 0:00:00]}  Ra5+ {[%clk 0:00:00]} 61. Nc5 {[%clk 0:00:00]}  Ra7 {[%clk 0:00:00]} 62. d7 {[%clk 0:00:00]}  Rxd7+ {[%clk 0:00:00]} 63. Nxd7 {[%clk 0:00:00]}  Kg7 {[%clk 0:00:00]} 64. Rf5 {[%clk 0:00:00]}  Kg6 {[%clk 0:00:00]} 65. e4 {[%clk 0:00:00]}  Ne1 {[%clk 0:00:00]} 66. Ne5+ {[%clk 0:00:00]}  Kg7 {[%clk 0:00:00]} 67. Nxg4 {[%clk 0:00:00]}  Nd3 {[%clk 0:00:00]} 68. Be5+ {[%clk 0:00:00]}  Kg6 {[%clk 0:00:00]} 69. Bg3 {[%clk 0:00:00]}  Nb4+ {[%clk 0:00:00]} 70. Ke6 {[%clk 0:00:00]}  Nc6 {[%clk 0:00:00]} 71. Rf8 {[%clk 0:00:00]}  Nd4+ {[%clk 0:00:00]} 72. Kd5 {[%clk 0:00:00]}  Nc2 {[%clk 0:00:00]} 73. Rg8+ {[%clk 0:00:00]}  Kf7 {[%clk 0:00:00]} 74. Nh6+ {[%clk 0:00:00]}  Ke7 {[%clk 0:00:00]} 75. Bh4+ {[%clk 0:00:00]}  Kd7 {[%clk 0:00:00]} 76. Rg7+ {[%clk 0:00:00]}  Ke8 {[%clk 0:00:00]} 77. e5 {[%clk 0:00:00]}  Nb4+ {[%clk 0:00:00]} 78. Kd6 {[%clk 0:00:00]}  Nc6 {[%clk 0:00:00]} 79. Rg8# {[%clk 0:00:00]} 1-0


[Site "https://www.chess.com"]